bitfinex/quotes_SOLUSD_20220117
["timestamp","ask_amount","ask_price","bid_price","bid_amount"]
[1642435070526,24.4347,142.23,142.1,58.4616]
[1642435070720,24.4347,142.23,142.11,36.7203465]
[1642435070921,24.4347,142.23,142.11,106.5003465]
[1642435071122,24.4347,142.23,142.12,0.25]
[1642435071521,24.4347,142.23,142.13,10.5508]
[1642435071721,24.4347,142.23,142.14,46.61450554]
[1642435071924,24.4347,142.23,142.14,46.86450554]
[1642435072121,24.4347,142.23,142.14,52.86450554]
[1642435072722,24.4347,142.23,142.16,10.5487]
[1642435072922,24.4347,142.23,142.17,36.35755374]
[1642435073123,24.4347,142.23,142.17,36.60755374]
[1642435073324,24.4347,142.23,142.17,42.60755374]
[1642435075323,24.4347,142.23,142.17,53.15575374]
[1642435075927,24.7399,142.24,142.17,53.15575374]
[1642435076324,24.7399,142.24,142.17,47.15575374]
[1642435076524,24.7399,142.24,142.17,42.60755374]
[1642435079658,35.2895,142.24,142.17,42.60755374]
[1642435080860,24.7399,142.24,142.17,36.60755374]
[1642435081463,18.9883,142.26,142.17,36.60755374]
[1642435082062,18.9883,142.26,142.17,47.15575374]
[1642435082261,8.44,142.26,142.17,47.15575374]
[1642435082963,1.99334434,142.29,142.17,53.50675374]
[1642435083169,1.99334434,142.29,142.17,61.94675374]
[1642435083366,1.99334434,142.29,142.18,69.78]
[1642435083564,1.99334434,142.29,142.17,67.94675374]
[1642435083965,1.99334434,142.3,142.17,67.94675374]
[1642435085269,1.99334434,142.3,142.18,69.78]
[1642435085469,1.99334434,142.3,142.21,10.5436]
[1642435085669,48.176,142.31,142.21,10.5436]
[1642435085871,48.176,142.31,142.22,0.25]
[1642435087171,58.7205,142.31,142.22,0.25]
[1642435087373,0.25,142.3,142.22,0.25]
[1642435088172,0.25,142.3,142.19,0.25]
[1642435088974,0.25,142.3,142.19,48.75796906]
[1642435089175,0.25,142.3,142.19,48.50796906]
[1642435089375,0.25,142.3,142.2,0.25]
[1642435089575,10.7956,142.3,142.19,59.05436906]
[1642435089775,101.57121837,142.29,142.19,59.05436906]
[1642435090177,0.25,142.28,142.19,10.5464]
[1642435090377,0.25,142.28,142.15,10.39153912]
[1642435090576,69.78,142.27,142.15,10.39153912]
[1642435090776,10.7988,142.26,142.17,10.5479]
[1642435090976,10.5488,142.26,142.17,10.5479]
[1642435091177,10.5488,142.26,142.18,45.94330898]
[1642435091476,13.55555646,142.26,142.18,45.94330898]
[1642435091879,0.25,142.25,142.15,10.5493]
[1642435092078,10.5506,142.23,142.14,1.95153912]
[1642435092278,10.5506,142.23,142.13,33.24353912]
[1642435092484,10.5506,142.23,142.13,10.39153912]
[1642435092679,0.25,142.22,142.13,1.95153912]
[1642435092979,32.04121837,142.22,142.13,1.95153912]
[1642435093180,32.04121837,142.22,142.12,37.83848569]
[1642435093581,10.5531,142.2,142.12,37.83848569]
[1642435093782,3.00675646,142.19,142.13,0.25]
[1642435094079,3.00675646,142.19,142.12,37.83848569]
[1642435094080,0.25,142.18,142.12,1.95153912]
[1642435094480,71.78619958,142.18,142.12,1.95153912]
[1642435094682,10.5563,142.17,142.12,1.95153912]
[1642435094881,0.25,142.16,142.1,1.95153912]
[1642435095280,104.9692,142.18,142.1,1.95153912]
[1642435095480,0.25,142.17,142.1,1.95153912]
[1642435095881,0.25,142.17,142.08,36.84049865]
[1642435096081,10.5566,142.15,142.07,1.95153912]
[1642435096280,0.25,142.14,142.07,1.95153912]
[1642435097182,0.25,142.14,142.07,42.29000802]
[1642435097684,10.5582,142.13,142.07,42.29000802]
[1642435098683,10.5582,142.13,142.04,12.50903912]
[1642435098883,10.5582,142.13,142.05,0.25]
[1642435099684,23.3374,142.15,142.05,0.25]
[1642435099685,33.8941,142.15,142.05,45.98316119]
[1642435099884,33.8941,142.15,142.05,51.98316119]
[1642435100084,7.89594131,142.14,142.05,51.98316119]
[1642435100288,7.89594131,142.14,142.05,41.42616119]
[1642435100486,7.89594131,142.14,142.05,35.42616119]
[1642435100687,7.89594131,142.14,142.05,41.42616119]
[1642435101289,23.3374,142.15,142.05,41.42616119]
[1642435101487,0.25,142.14,142.05,41.42616119]
[1642435101687,10.5581,142.13,142.05,41.42616119]
[1642435104587,23.3374,142.15,142.05,41.42616119]
[1642435105590,10.557,142.14,142.05,51.98316119]
[1642435106887,10.057,142.14,142.05,51.98316119]
[1642435107289,10.057,142.14,142.05,41.42616119]
[1642435107891,79.837,142.14,142.05,41.42616119]
[1642435108490,10.057,142.14,142.05,41.42616119]
[1642435110392,17.91690138,142.14,142.05,41.17616119]
[1642435111890,17.91690138,142.14,142.06,0.25]
[1642435112491,87.69690138,142.14,142.06,0.25]
[1642435112691,0.25,142.13,142.06,0.25]
[1642435112894,10.5585,142.12,142.06,0.25]
[1642435113123,10.5585,142.12,142.04,0.25]
[1642435113721,10.5585,142.12,142.04,46.11392534]
[1642435113924,10.5585,142.12,142.04,52.11392534]
[1642435114927,10.5585,142.12,142.04,62.67182534]
[1642435115833,0.25,142.13,142.04,62.67182534]
[1642435116226,0.25,142.14,142.04,62.67182534]
[1642435117327,10.8069,142.14,142.04,62.67182534]
[1642435117529,14.19091303,142.14,142.04,62.67182534]
[1642435117728,10.8069,142.14,142.04,62.42182534]
[1642435118028,82.34309958,142.14,142.02,12.51053912]
[1642435118431,82.34309958,142.14,142.03,1.95153912]
[1642435118629,90.78309958,142.14,142.03,1.95153912]
[1642435119030,99.78994071,142.13,142.03,1.95153912]
[1642435119328,10.5598,142.1,142.03,1.95153912]
[1642435119530,10.5598,142.1,142.02,59.34497908]
[1642435119732,0.25,142.09,142.03,0.25]
[1642435121533,0.25,142.09,142.01,1.95153912]
[1642435121534,10.8106,142.09,142.01,1.95153912]
[1642435122335,1.75619958,142.08,142.01,1.95153912]
[1642435122535,29.5138703,142.07,142.01,1.95153912]
[1642435122734,8.44,142.06,142.01,1.95153912]
[1642435122935,10.19619958,142.06,142.01,1.95153912]
[1642435123134,80.3465,142.04,142.01,3.912e-05]
[1642435123335,6.31439994,142.03,141.98,3.912e-05]
[1642435124538,80.3465,142.02,141.91,5.9661994]
[1642435124737,80.3465,142.02,141.9,37.39080849]
[1642435124738,10.5665,142.02,141.9,37.39080849]
[1642435125038,10.5665,142.02,141.91,6.0]
[1642435125237,10.5665,142.02,141.9,32.82320849]
[1642435125436,33.9033,142.02,141.91,40.8699797]
[1642435125837,33.9033,142.02,141.92,10.8164]
[1642435126241,33.9033,142.02,141.92,16.8164]
[1642435126439,33.9033,142.02,141.93,1.64089942]
[1642435126641,33.9033,142.02,141.94,49.65914873]
[1642435126941,33.9033,142.02,141.94,55.90914873]
[1642435128341,33.9033,142.02,141.94,49.90914873]
[1642435128840,19.0048,142.04,141.94,60.47434873]
[1642435129141,8.44,142.04,141.95,1.64089942]
[1642435129340,8.44,142.04,141.96,0.25]
[1642435129542,8.44,142.04,141.94,49.65914873]
[1642435129741,8.44,142.04,141.94,55.65914873]
[1642435129943,19.0045,142.04,141.94,66.22454873]
[1642435130140,8.44,142.04,141.94,66.22454873]
[1642435130943,8.44,142.04,141.95,0.25]
[1642435131347,8.44,142.04,141.95,10.8145]
[1642435131549,8.44,142.04,141.95,12.45539942]
[1642435132272,8.44,142.04,141.95,18.45539942]
[1642435132472,8.44,142.04,141.95,12.45539942]
[1642435132676,22.5459,142.06,141.95,90.29439942]
[1642435132876,22.5459,142.06,141.95,96.29439942]
[1642435133173,22.5459,142.06,141.95,34.95439942]
[1642435134378,22.5459,142.06,141.95,26.89539942]
[1642435136174,22.5459,142.06,141.95,96.67539942]
[1642435136575,22.5459,142.06,141.95,26.89539942]
[1642435136776,33.1093,142.06,141.95,25.2545]
[1642435136977,33.1093,142.06,141.95,26.89539942]
[1642435140181,33.1093,142.06,141.95,96.67539942]
[1642435140583,10.5634,142.06,141.95,96.67539942]
[1642435140782,10.5618,142.08,141.95,96.67539942]
[1642435141181,10.5618,142.08,141.95,96.42539942]
[1642435141388,10.5618,142.08,141.95,26.64539942]
[1642435142185,22.7307,142.07,141.95,26.64539942]
[1642435142389,10.5652,142.04,141.95,14.44]
[1642435143083,10.5652,142.04,141.95,6.0]
[1642435143284,10.5652,142.04,141.94,55.65914873]
[1642435143687,10.5652,142.04,141.94,66.22424873]
[1642435143889,10.5652,142.04,141.95,1.64089942]
[1642435144286,10.5652,142.04,141.96,0.25]
[1642435145088,10.5652,142.04,141.95,0.25]
[1642435147193,3.44024825,142.03,141.95,0.25]
[1642435147391,10.5675,142.01,141.95,0.25]
[1642435148592,10.5675,142.01,141.93,3.94502275]
[1642435149392,10.5675,142.01,141.93,38.61119244]
[1642435149891,0.25,142.0,141.91,7.94370341]
[1642435150092,10.5704,141.98,141.91,13.94370341]
[1642435150294,10.5704,141.98,141.9,0.17618574]
[1642435150295,10.5704,141.98,141.9,4.12120849]
[1642435150898,3.28593366,141.97,141.9,4.12120849]
[1642435151294,10.5723,141.95,141.9,4.12120849]
[1642435151598,130.0,141.93,141.76,10.5445]
[1642435151794,35.2708,141.85,141.79,9.99830669]
[1642435151993,8.44,141.84,141.79,9.99830669]
[1642435152494,19.0213,141.84,141.79,9.99830669]
[1642435153093,19.0213,141.84,141.77,56.55560148]
[1642435153294,49.96409939,141.86,141.77,56.55560148]
[1642435153295,14.69609939,141.86,141.77,40.94597921]
[1642435153500,8.44,141.85,141.77,46.94597921]
[1642435153794,14.69609939,141.86,141.78,5.31825026]
[1642435153994,14.69609939,141.86,141.78,1.64089942]
[1642435154195,14.69609939,141.86,141.8,34.91955428]
[1642435154701,33.71389939,141.86,141.8,34.91955428]
[1642435155695,23.13609939,141.86,141.8,40.67855428]
[1642435155895,23.13609939,141.86,141.81,1.64089942]
[1642435156098,14.69609939,141.86,141.81,1.64089942]
[1642435156296,14.69609939,141.86,141.82,0.25]
[1642435156497,14.69609939,141.86,141.8,40.67855428]
[1642435156897,14.69609939,141.86,141.8,46.67855428]
[1642435157098,14.69609939,141.86,141.8,51.25385428]
[1642435157301,14.69609939,141.86,141.81,1.64089942]
[1642435157699,14.69609939,141.86,141.81,7.64089942]
[1642435157899,8.44,141.92,141.81,7.64089942]
[1642435158099,8.44,141.92,141.82,1.64089942]
[1642435158302,23.5126,141.96,141.82,18.46259942]
[1642435158500,23.5126,141.96,141.83,69.78]
[1642435158704,8.44,141.97,141.85,35.2266]
[1642435158900,24.4509,142.0,141.86,0.25]
[1642435158901,22.7231,141.99,141.86,0.25]
[1642435159204,22.7231,141.99,141.86,56.31310954]
[1642435159399,22.7231,141.99,141.86,62.31310954]
[1642435159602,24.4509,142.0,141.9,10.5673]
[1642435159800,24.4509,142.0,141.91,0.25]
[1642435160000,26.20362624,142.07,141.91,1.89089942]
[1642435160200,8.44,142.03,141.91,1.89089942]
[1642435160401,24.5554,142.06,141.93,45.81331168]
[1642435160600,24.5554,142.06,141.93,52.67931168]
[1642435160802,10.5639,142.05,141.97,44.32528464]
[1642435161001,10.5639,142.05,141.97,51.44028464]
[1642435161200,10.5639,142.05,141.98,0.25]
[1642435161402,24.5554,142.06,141.98,0.25]
[1642435162404,41.66275971,142.06,141.98,10.8123]
[1642435162602,35.1183,142.06,141.98,0.25]
[1642435163904,24.5554,142.06,141.98,17.416]
[1642435164312,24.8966,142.07,141.98,17.416]
[1642435164504,10.6677,142.17,141.98,17.416]
[1642435164705,8.44,142.16,141.98,17.416]
[1642435164907,57.22149692,142.16,141.98,17.416]
[1642435165105,57.22149692,142.16,141.98,19.05571343]
[1642435165304,10.5603,142.1,141.98,19.05571343]
[1642435165729,8.44,142.13,141.98,19.05571343]
[1642435166029,24.3502,142.15,141.99,8.44]
[1642435166229,21.96311819,142.19,141.99,8.74399338]
[1642435166430,8.44,142.21,142.05,10.5531]
[1642435166630,38.42532358,142.2,142.06,35.34500539]
[1642435166830,38.42532358,142.2,142.06,43.23471882]
[1642435167029,108.20532358,142.2,142.06,41.59500539]
[1642435167229,46.86532358,142.2,142.06,0.25]
[1642435167629,59.34121955,142.2,142.06,0.25]
[1642435167829,21.8045269,142.19,142.06,0.25]
[1642435168033,8.44,142.18,142.06,0.25]
[1642435168230,1.91100363,142.17,142.06,0.25]
[1642435168430,2.16100363,142.17,142.06,0.25]
[1642435168631,2.16100363,142.17,142.06,43.4205904]
[1642435168932,2.16100363,142.17,142.05,10.5564]
[1642435169335,8.44,142.16,142.05,10.5564]
[1642435169531,10.5575,142.15,142.03,10.5579]
[1642435169731,8.44,142.14,141.97,35.1984]
[1642435169932,37.0665998,142.13,141.99,45.22338618]
[1642435170132,45.7565998,142.13,141.99,45.22338618]
[1642435170733,47.51279938,142.13,141.99,45.22338618]
[1642435171633,3.26972741,142.1,142.01,10.5593]
[1642435171833,0.25,142.09,142.02,43.90685399]
[1642435172032,18.9997,142.11,142.02,43.90685399]
[1642435172433,0.25,142.1,142.02,43.90685399]
[1642435173435,18.9997,142.11,142.03,0.25]
[1642435174342,12.31649958,142.1,142.03,0.25]
[1642435174541,8.44,142.11,142.03,0.25]
[1642435174739,8.44,142.11,142.03,9.106]
[1642435175138,55.8082,142.14,142.03,9.106]
[1642435176542,55.8082,142.14,142.03,19.6642]
[1642435176741,8.44,142.14,142.03,19.6642]
[1642435176944,43.9339,142.18,142.04,1.6356519]
[1642435177346,43.9339,142.18,142.05,35.4330591]
[1642435177948,18.9943,142.18,142.05,35.4330591]
[1642435178147,18.9943,142.18,142.05,41.4330591]
[1642435178346,18.9943,142.18,142.06,69.78]
[1642435178546,18.9943,142.18,142.07,10.5532]
[1642435178748,18.9943,142.18,142.07,10.8032]
[1642435178946,18.9943,142.18,142.08,41.98163662]
[1642435179246,8.44,142.18,142.09,0.25]
[1642435179449,8.44,142.18,142.09,6.193]
[1642435179649,10.5529,142.2,142.09,6.193]
[1642435179847,0.25,142.19,142.09,6.193]
[1642435180248,10.5529,142.2,142.09,6.193]
[1642435180448,45.5829,142.21,142.09,16.7462]
[1642435180646,45.5829,142.21,142.09,22.7462]
[1642435181750,45.5829,142.21,142.1,69.78]
[1642435181949,45.5829,142.21,142.12,10.551]
[1642435182147,45.5829,142.21,142.12,18.069]
[1642435182347,45.5829,142.21,142.13,0.25]
[1642435182550,56.1347,142.21,142.13,47.55221894]
[1642435182748,10.5518,142.21,142.13,47.55221894]
[1642435182955,8.44,142.22,142.13,58.10281894]
[1642435183351,0.25,142.21,142.13,58.10281894]
[1642435184150,2.00619958,142.21,142.13,47.55221894]
[1642435184351,11.13881096,142.21,142.13,47.55221894]
[1642435184555,80.91881096,142.21,142.13,0.25]
[1642435184750,8.44,142.2,142.1,0.25]
[1642435184952,10.5531,142.19,142.1,0.25]
[1642435185151,12.55929958,142.19,142.08,0.25]
[1642435185352,1.75619958,142.18,142.08,10.5539]
[1642435185651,0.25,142.19,142.08,50.34035963]
[1642435185854,0.25,142.2,142.08,58.29035963]
[1642435186252,0.25,142.2,142.08,64.29035963]
[1642435186452,0.25,142.2,142.11,10.5516]
[1642435186653,23.7281,142.23,142.12,37.2471019]
[1642435187652,23.7281,142.23,142.12,50.0391019]
[1642435187853,23.7281,142.23,142.15,10.549]
[1642435188254,23.7281,142.23,142.16,0.25]
[1642435188953,23.7281,142.23,142.16,10.7985]
[1642435189154,49.57044983,142.24,142.16,0.25]
[1642435189355,49.57044983,142.24,142.13,0.25]
[1642435189756,0.25,142.23,142.09,6.0]
[1642435189957,78.47,142.23,142.09,6.0]
[1642435190155,78.47,142.23,142.05,41.59281244]
[1642435190356,24.2846,142.22,142.05,47.59281244]
[1642435190557,1.31527738,142.19,142.09,37.51445642]
[1642435190957,1.31527738,142.19,142.09,43.51445642]
[1642435191156,1.31527738,142.19,142.1,0.25]
[1642435191359,0.25,142.18,142.1,0.25]
[1642435192685,10.5543,142.18,142.1,0.25]
[1642435192884,32.3028,142.21,142.1,0.25]
[1642435194586,10.5529,142.2,142.1,10.8031]
[1642435194787,10.5529,142.2,142.1,16.8031]
[1642435195487,23.8628,142.21,142.1,16.8031]
[1642435195789,8.44,142.27,142.1,26.8787519]
[1642435196390,47.2189468,142.27,142.1,26.8787519]
[1642435196590,10.5499,142.24,142.1,26.8787519]
[1642435197191,27.66265943,142.26,142.1,27.1387519]
[1642435197394,0.25,142.25,142.1,27.1387519]
[1642435198491,23.785,142.26,142.1,27.1387519]
[1642435198692,34.3333,142.26,142.1,27.1387519]
[1642435199592,34.3333,142.26,142.15,10.5486]
[1642435199792,0.25,142.25,142.16,0.25]
[1642435200003,10.5501,142.23,142.16,0.25]
[1642435200994,10.5501,142.23,142.13,0.25]
[1642435201692,10.5501,142.23,142.16,41.94074823]
[1642435201894,32.225,142.26,142.17,0.25]
[1642435202293,0.25,142.25,142.17,0.25]
[1642435203695,10.5496,142.24,142.17,0.25]
[1642435203894,10.5496,142.24,142.16,41.94074823]
[1642435204094,10.5496,142.24,142.17,0.25]
[1642435208297,4.71107318,142.23,142.17,0.25]
[1642435208700,10.5496,142.24,142.17,0.25]
[1642435209499,10.5496,142.24,142.2,14.72482179]
[1642435209701,10.5496,142.24,142.2,29.44964358]
[1642435213801,10.4646,142.24,142.2,29.44964358]
[1642435214404,10.4646,142.24,142.2,14.72482179]
[1642435214602,3.91680349,142.23,142.2,14.72482179]
[1642435214802,3.91680349,142.23,142.22,14.72482179]
[1642435215004,9.98120343,142.23,142.22,14.72482179]
[1642435219612,6.06439994,142.23,142.22,14.72482179]
[1642435220411,6.06439994,142.23,142.22,29.44964358]
[1642435221410,45.06439994,142.23,142.22,29.44964358]
[1642435221610,53.50439994,142.23,142.22,29.44964358]
[1642435222210,62.24799233,142.23,142.22,29.44964358]
[1642435222412,57.07,142.22,142.07,36.8100519]
[1642435222610,10.554,142.19,142.08,22.7122]
[1642435222810,0.25,142.18,142.06,69.78]
[1642435223011,32.3244,142.18,142.06,69.78]
[1642435223413,31.59273482,142.17,142.07,40.89505654]
[1642435223811,31.59273482,142.17,142.08,0.25]
[1642435224011,31.59273482,142.17,142.07,40.89505654]
[1642435224512,42.14783482,142.17,142.08,10.5543]
[1642435224711,42.14783482,142.17,142.07,40.89505654]
[1642435224912,42.14783482,142.17,142.03,23.7384]
[1642435225113,8.69,142.16,142.03,23.7384]
[1642435225712,10.5588,142.13,142.03,23.7384]
[1642435225914,8.74359239,142.12,142.02,55.2387665]
[1642435226113,32.7727,142.14,142.02,55.2387665]
[1642435226915,10.5594,142.11,142.02,55.2387665]
[1642435227114,45.24696406,142.11,142.02,55.2387665]
[1642435227313,0.25,142.1,142.02,55.2387665]
[1642435227812,0.25,142.1,142.0,18.19272186]
[1642435228012,0.25,142.1,142.01,0.25]
[1642435228213,10.8103,142.1,142.01,0.25]
[1642435228515,10.8103,142.1,142.0,7.63242186]
[1642435228915,10.8103,142.1,142.01,37.01362207]
[1642435229514,10.8103,142.1,142.01,47.57352207]
[1642435229715,10.5603,142.1,142.01,47.57352207]
[1642435230119,10.5603,142.1,141.98,3.67523936]
[1642435230315,10.5619,142.07,141.95,66.9674]
[1642435230918,10.5619,142.07,141.97,10.5624]
[1642435231119,5.64876315,142.06,141.97,10.5624]
[1642435231419,8.44,142.08,141.97,10.5624]
[1642435231716,8.44,142.08,141.97,80.9224]
[1642435231918,8.44,142.08,141.97,10.5624]
[1642435232319,44.38895123,142.08,141.98,10.8116]
[1642435232517,44.38895123,142.08,141.99,34.89014938]
[1642435232718,44.38895123,142.08,141.99,35.14014938]
[1642435232920,19.0014,142.08,141.99,35.14014938]
[1642435233619,8.44,142.08,141.99,45.70144938]
[1642435234018,24.3791,142.09,141.99,45.70144938]
[1642435234420,8.44,142.12,141.99,45.70144938]
[1642435234621,8.44,142.12,141.99,61.41528186]
[1642435235020,46.391,142.17,141.99,61.41528186]
[1642435235220,8.44,142.16,141.99,121.44336598]
[1642435235521,54.08133896,142.18,141.99,121.44336598]
[1642435235921,14.31520523,142.18,141.99,110.76828186]
[1642435236623,14.31520523,142.18,142.0,70.36]
[1642435236824,0.25,142.17,142.05,10.5541]
[1642435237123,0.25,142.17,142.06,42.90248136]
[1642435237322,14.31520523,142.18,142.06,43.15248136]
[1642435237722,8.44,142.18,142.07,70.36]
[1642435237922,8.44,142.18,142.07,80.9145]
[1642435238123,8.44,142.18,142.08,0.25]
[1642435238322,46.4202,142.2,142.08,0.25]
[1642435238925,8.44,142.22,142.08,0.25]
[1642435239335,8.44,142.22,142.1,10.5522]
[1642435239526,48.4331,142.25,142.11,8.44]
[1642435239726,5.87520523,142.27,142.12,70.36]
[1642435240026,5.87520523,142.27,142.13,8.44]
[1642435240225,5.87520523,142.27,142.13,16.359]
[1642435240425,5.87520523,142.29,142.14,43.9999997]
[1642435240649,16.42120523,142.29,142.15,18.9863]
[1642435240849,16.42120523,142.29,142.15,19.2363]
[1642435241047,10.546,142.29,142.15,19.2363]
[1642435241751,12.30219958,142.29,142.15,19.2363]
[1642435242150,12.30219958,142.29,142.15,19.4963]
[1642435242550,12.30219958,142.29,142.16,70.36]
[1642435242751,12.30219958,142.29,142.17,36.31582505]
[1642435242952,12.30219958,142.29,142.2,35.18544335]
[1642435242953,10.546,142.29,142.2,35.18544335]
[1642435243151,1.9868282,142.28,142.2,35.18544335]
[1642435243351,1.9868282,142.28,142.21,0.25]
[1642435243753,1.9868282,142.27,142.21,0.25]
[1642435244754,12.5334282,142.28,142.21,0.25]
[1642435244953,0.25,142.27,142.21,0.25]
[1642435245352,2.2368282,142.27,142.21,0.25]
[1642435245755,1.9868282,142.27,142.21,0.25]
[1642435246355,1.9868282,142.28,142.21,0.25]
[1642435246755,0.25,142.27,142.21,0.25]
[1642435247255,1.9868282,142.28,142.21,0.25]
[1642435247458,1.9868282,142.27,142.21,0.25]
[1642435247657,1.9868282,142.27,142.1,24.6027]
[1642435247858,0.25,142.26,142.13,8.44]
[1642435248059,1.9868282,142.26,142.13,8.44]
[1642435248558,1.9868282,142.26,142.14,43.91292429]
[1642435248758,1.9868282,142.26,142.15,0.25]
[1642435249161,1.9868282,142.26,142.17,10.547]
[1642435249458,1.9868282,142.26,142.18,35.25355814]
[1642435250264,12.5353282,142.26,142.18,35.25355814]
[1642435250461,12.5353282,142.26,142.18,35.00355814]
[1642435250759,2.2368282,142.25,142.18,35.00355814]
[1642435251559,12.5355282,142.25,142.18,35.00355814]
[1642435251761,1.9868282,142.25,142.19,0.25]
[1642435251960,1.9868282,142.24,142.19,0.25]
[1642435252762,1.9868282,142.27,142.19,0.25]
[1642435253561,1.9868282,142.28,142.19,0.25]
[1642435253964,12.5333282,142.28,142.19,0.25]
[1642435254363,1.9868282,142.28,142.19,0.25]
[1642435254563,1.9868282,142.28,142.19,8.69]
[1642435254762,1.9868282,142.28,142.2,70.36]
[1642435254962,1.9868282,142.28,142.2,89.344]
[1642435255164,1.9868282,142.28,142.21,0.25]
[1642435255561,1.9868282,142.28,142.21,49.03482486]
[1642435256063,1.9868282,142.3,142.21,49.03482486]
[1642435256263,0.25,142.29,142.21,49.03482486]
[1642435256663,0.25,142.29,142.21,48.78482486]
[1642435257067,1.9868282,142.28,142.22,0.25]
[1642435258465,1.9868282,142.29,142.22,0.25]
[1642435259169,1.9868282,142.3,142.22,0.25]
[1642435259970,59.1340282,142.31,142.22,0.25]
[1642435260570,1.9868282,142.3,142.22,0.25]
[1642435262976,1.9868282,142.3,142.22,70.61]
[1642435263875,1.9868282,142.3,142.22,81.153]
[1642435264378,0.4868282,142.29,142.22,81.153]
[1642435265176,3.98184767,142.32,142.24,10.541]
[1642435265377,3.98184767,142.32,142.25,0.25]
[1642435265782,3.98184767,142.32,142.25,70.61]
[1642435266280,3.98184767,142.32,142.25,0.25]
[1642435266683,3.97698764,142.33,142.25,0.25]
[1642435266684,3.97698764,142.33,142.25,10.7907]
[1642435267302,3.97698764,142.33,142.26,70.36]
[1642435267500,5.87520523,142.36,142.27,69.0]
[1642435267703,5.87520523,142.36,142.29,10.5379]
[1642435267902,5.87520523,142.36,142.3,0.25]
[1642435268301,5.87520523,142.36,142.3,41.52415989]
[1642435268501,280.8061083,142.42,142.3,41.52415989]
[1642435268706,3.99211289,142.35,142.3,52.06145989]
[1642435268902,7.98422578,142.35,142.3,41.52415989]
[1642435270802,0.25,142.34,142.27,8.44]
[1642435271204,7.485,142.36,142.27,14.44]
[1642435271402,0.25,142.35,142.27,14.44]
[1642435271804,10.5406,142.36,142.28,43.74243776]
[1642435272204,1.75619958,142.38,142.28,49.74243776]
[1642435272404,0.25,142.37,142.28,43.74243776]
[1642435272804,7.98355416,142.39,142.28,60.28123776]
[1642435273306,23.702,142.4,142.29,0.25]
[1642435273508,3.98219633,142.36,142.29,0.25]
[1642435274106,3.98219633,142.36,142.31,38.74714282]
[1642435274313,8.426,142.38,142.31,44.74714282]
[1642435274516,8.426,142.38,142.31,38.74714282]
[1642435275319,10.7898,142.37,142.27,8.44]
[1642435275519,10.7898,142.37,142.24,8.44]
[1642435275719,1.75619958,142.36,142.24,8.44]
[1642435276120,0.25,142.35,142.24,8.44]
[1642435276320,56.11570544,142.35,142.25,38.56075105]
[1642435276522,1.75619958,142.34,142.25,38.56075105]
[1642435276722,1.75619958,142.34,142.25,44.56075105]
[1642435277025,0.25,142.33,142.25,44.56075105]
[1642435277229,4.23219633,142.35,142.25,44.56075105]
[1642435277625,10.5427,142.33,142.25,44.56075105]
[1642435278226,0.25,142.32,142.25,44.56075105]
[1642435279227,0.25,142.32,142.25,38.56075105]
[1642435279427,10.7934,142.32,142.2,65.5313]
[1642435279629,10.7934,142.32,142.17,70.36]
[1642435279826,47.3629,142.31,142.18,8.44]
[1642435280228,0.25,142.3,142.18,14.44]
[1642435280427,0.25,142.3,142.2,70.36]
[1642435280630,0.25,142.3,142.2,80.9047]
[1642435280828,0.25,142.3,142.21,0.25]
[1642435281833,57.9076,142.31,142.21,0.25]
[1642435282031,57.9076,142.31,142.21,10.7939]
[1642435282231,47.3629,142.31,142.21,16.7939]
[1642435282429,47.3629,142.31,142.22,70.36]
[1642435282830,47.3629,142.31,142.23,48.14004634]
[1642435283231,47.3629,142.31,142.23,64.68194634]
[1642435283430,8.44,142.36,142.23,66.32314836]
[1642435283631,8.44,142.38,142.24,8.44]
[1642435283930,23.9428,142.37,142.25,0.25]
[1642435284535,23.9428,142.37,142.26,48.43574361]